bitfinex/quotes_SOLUSD_20250528
["timestamp","ask_amount","ask_price","bid_price","bid_amount"]
[1748463045261,89.5,169.4,169.38,20.96304641]
[1748463047454,5.90353621,169.39,169.38,20.96304641]
[1748463048265,5.90353621,169.39,169.36,26.0]
[1748463048463,5.90353621,169.39,169.37,20.96304641]
[1748463048669,5.90353621,169.39,169.38,20.96304641]
[1748463052874,89.5,169.47,169.39,44.64964886]
[1748463053085,89.5,169.47,169.46,20.96304641]
[1748463053248,95.39974864,169.5,169.46,20.96304641]
[1748463053449,95.39974864,169.5,169.49,20.96304641]
[1748463053754,89.5,169.5,169.49,20.96304641]
[1748463054174,95.39970501,169.5,169.45,1.5984]
[1748463054371,95.39970501,169.5,169.49,20.96304641]
[1748463055276,5.89945107,169.51,169.49,20.96304641]
[1748463055573,5.89945107,169.51,169.5,20.96304641]
[1748463055952,5.8979652,169.55,169.5,20.96304641]
[1748463056153,0.14216157,169.54,169.49,20.96304641]
[1748463056352,21.10520798,169.54,169.49,20.96304641]
[1748463058565,20.6453135,169.53,169.49,20.96304641]
[1748463059883,20.6453135,169.53,169.51,20.96304641]
[1748463060183,5.898661,169.53,169.52,20.96304641]
[1748463060476,5.8979652,169.55,169.52,20.96304641]
[1748463061983,5.8979652,169.55,169.53,20.96304641]
[1748463062158,5.8979652,169.55,169.52,20.96304641]
[1748463062765,20.64226721,169.56,169.52,20.96304641]
[1748463064290,20.64226721,169.56,169.49,26.0]
[1748463064466,20.64226721,169.56,169.52,20.96304641]
[1748463064879,35.70769626,169.56,169.51,20.96304641]
[1748463065666,89.5,169.55,169.51,20.96304641]
[1748463066085,89.5,169.55,169.52,20.96304641]
[1748463066591,89.5,169.55,169.53,20.96304641]
[1748463067573,5.89831308,169.54,169.53,20.96304641]
[1748463069592,5.89831308,169.54,169.49,26.0]
[1748463069795,5.89831308,169.54,169.52,20.96304641]
[1748463072694,5.89831308,169.54,169.53,20.96304641]
[1748463072878,5.8969218,169.58,169.53,20.96304641]
[1748463073190,5.8969218,169.58,169.54,20.96304641]
[1748463073380,20.63922631,169.58,169.54,20.96304641]
[1748463075812,20.63922631,169.58,169.55,20.96304641]
[1748463077203,20.96304641,169.57,169.53,20.96304641]
[1748463077900,139.62383534,169.58,169.53,20.96304641]
[1748463078267,160.58688175,169.58,169.54,20.96304641]
[1748463078696,139.62383534,169.58,169.54,20.96304641]
[1748463079080,139.62383534,169.58,169.55,20.96304641]
[1748463079081,110.13922631,169.58,169.55,20.96304641]
[1748463083997,95.3969218,169.58,169.56,20.96304641]
[1748463085792,95.3969218,169.58,169.57,20.96304641]
[1748463085984,5.8969218,169.58,169.57,20.96304641]
[1748463086807,5.8969218,169.58,169.51,37.4418]
[1748463086984,5.8969218,169.58,169.56,20.96304641]
[1748463088210,20.63806286,169.59,169.56,20.96304641]
[1748463089278,110.13806286,169.59,169.56,20.96304641]
[1748463092878,110.13806286,169.59,169.57,20.96304641]
[1748463093305,89.5,169.59,169.58,20.96304641]
[1748463093513,5.89587878,169.61,169.58,20.96304641]
[1748463093804,5.89587878,169.61,169.6,20.96304641]
[1748463095414,5.89553118,169.62,169.59,20.96304641]
[1748463095704,20.63435914,169.62,169.59,20.96304641]
[1748463096005,20.63435914,169.62,169.58,20.96304641]
[1748463098113,110.13435914,169.62,169.58,20.96304641]
[1748463098706,131.09740555,169.62,169.58,20.96304641]
[1748463100600,110.13435914,169.62,169.58,20.96304641]
[1748463101300,131.09740555,169.62,169.57,20.96304641]
[1748463103907,20.96304641,169.61,169.57,20.96304641]
[1748463104109,110.46304641,169.61,169.57,20.96304641]
[1748463105938,20.63679244,169.6,169.57,20.96304641]
[1748463107132,5.89622641,169.6,169.59,20.96304641]
[1748463108345,95.39600327,169.61,169.59,20.96304641]
[1748463108629,95.39600327,169.61,169.6,20.96304641]
[1748463110027,5.89600327,169.61,169.6,20.96304641]
[1748463110224,5.89518363,169.63,169.6,20.96304641]
[1748463110730,20.63314271,169.63,169.6,20.96304641]
[1748463111022,20.63314271,169.63,169.59,58.02304641]
[1748463111236,20.63314271,169.63,169.59,20.96304641]
[1748463113630,20.63314271,169.63,169.6,20.96304641]
[1748463114110,5.89518363,169.63,169.61,20.96304641]
[1748463114713,5.89518363,169.63,169.57,38.5774]
[1748463114931,5.89518363,169.63,169.61,20.96304641]
[1748463116930,5.89518363,169.63,169.6,20.96304641]
[1748463118340,20.63314271,169.63,169.6,20.96304641]
[1748463119718,20.63314271,169.63,169.57,38.5774]
[1748463120244,20.63314271,169.63,169.6,20.96304641]
[1748463122938,41.59618912,169.63,169.59,20.96304641]
[1748463123139,20.96304641,169.62,169.57,1.5174]
[1748463123441,110.46304641,169.62,169.55,37.02]
[1748463123735,20.96304641,169.61,169.57,20.96304641]
[1748463124109,41.59862214,169.61,169.57,20.96304641]
[1748463124533,20.63557573,169.61,169.57,20.96304641]
[1748463124735,20.63557573,169.61,169.58,20.96304641]
[1748463125340,20.63557573,169.61,169.59,20.96304641]
[1748463126617,20.63557573,169.61,169.58,20.96304641]
[1748463130225,20.63557573,169.61,169.55,37.02]
[1748463130425,20.63557573,169.61,169.58,20.96304641]
[1748463132151,20.63557573,169.61,169.58,13.33640778]
[1748463134232,13.33640778,169.6,169.55,13.33640778]
[1748463134432,13.33640778,169.6,169.56,13.33640778]
[1748463135031,5.89657409,169.59,169.56,13.33640778]
[1748463136163,5.89657409,169.59,169.58,13.33640778]
[1748463136955,5.89657409,169.59,169.57,13.33640778]
[1748463137154,20.63557573,169.61,169.57,13.33640778]
[1748463137453,33.97198351,169.61,169.57,13.33640778]
[1748463139649,5.89657409,169.59,169.57,13.33640778]
[1748463140944,5.89657409,169.59,169.56,13.33640778]
[1748463141140,20.63800931,169.59,169.56,13.33640778]
[1748463141344,13.33640778,169.58,169.53,11.4514]
[1748463141551,5.89726956,169.57,169.53,24.78780778]
[1748463141857,110.14044347,169.57,169.53,14.84780778]
[1748463142053,110.14044347,169.57,169.53,22.3601551]
[1748463143263,130.98919857,169.57,169.53,20.8487551]
[1748463143844,130.98919857,169.57,169.49,1.6599]
[1748463143845,20.8487551,169.56,169.49,1.6599]
[1748463144045,110.3487551,169.55,169.51,20.8487551]
[1748463144353,89.5,169.55,169.51,20.8487551]
[1748463144554,89.5,169.55,169.5,37.0]
[1748463144555,89.5,169.55,169.52,20.8487551]
[1748463146139,5.89831308,169.54,169.52,20.8487551]
[1748463149677,5.89831308,169.54,169.51,20.8487551]
[1748463150781,5.89831308,169.54,169.5,20.8487551]
[1748463150782,130.99285088,169.54,169.5,20.8487551]
[1748463151142,20.8487551,169.52,169.45,46.23644886]
[1748463151369,5.89970501,169.5,169.46,20.8487551]
[1748463152458,5.89970501,169.5,169.45,1.5868]
[1748463152667,41.49772264,169.5,169.46,20.8487551]
[1748463153282,20.64896754,169.5,169.45,1.5868]
[1748463153479,20.8487551,169.49,169.45,22.4355551]
[1748463153649,20.8487551,169.49,169.44,20.8487551]
[1748463154049,20.8487551,169.49,169.45,20.8487551]
[1748463154775,5.90040122,169.48,169.45,20.8487551]
[1748463156773,5.90040122,169.48,169.44,20.8487551]
[1748463156976,5.90040122,169.48,169.45,20.8487551]
[1748463157168,20.8487551,169.47,169.41,20.16094886]
[1748463157355,20.8487551,169.47,169.43,20.8487551]
[1748463157973,20.8487551,169.47,169.42,20.8487551]
[1748463158278,110.15140428,169.48,169.42,20.8487551]
[1748463158279,26.7498527,169.46,169.42,20.8487551]
[1748463159553,26.7498527,169.46,169.41,1.5113]
[1748463159554,20.8487551,169.45,169.41,1.5113]
[1748463159880,20.8487551,169.43,169.39,9.9]
[1748463160177,20.8487551,169.43,169.39,30.7487551]
[1748463161075,5.90249085,169.42,169.39,30.7487551]
[1748463161255,5.90249085,169.42,169.39,9.9]
[1748463161459,20.8487551,169.41,169.37,85.3634551]
[1748463161665,20.8487551,169.41,169.37,22.3634551]
[1748463161857,20.8487551,169.41,169.37,20.8487551]
[1748463162866,5.90283926,169.41,169.37,20.8487551]
[1748463166683,26.75159436,169.41,169.37,20.8487551]
[1748463169466,5.90283926,169.41,169.37,20.8487551]
[1748463169790,26.75159436,169.41,169.37,20.8487551]
[1748463170857,20.8487551,169.4,169.36,20.8487551]
[1748463171055,20.8487551,169.39,169.34,54.54964886]
[1748463171260,20.8487551,169.38,169.34,56.7487551]
[1748463171485,20.8487551,169.39,169.35,20.8487551]
[1748463172397,20.8487551,169.4,169.36,20.8487551]
[1748463172704,95.40214247,169.43,169.34,35.9]
[1748463172705,95.40214247,169.43,169.39,20.8487551]
[1748463172865,5.90214247,169.43,169.4,20.8487551]
[1748463173066,5.90179414,169.44,169.4,20.8487551]
[1748463173784,5.90179414,169.44,169.43,26.0]
[1748463176884,5.90179414,169.44,169.4,20.8487551]
[1748463176885,5.90179414,169.44,169.4,46.8487551]
[1748463177981,5.90179414,169.44,169.4,20.8487551]
[1748463178188,20.8487551,169.43,169.39,20.8487551]
[1748463178488,20.8487551,169.43,169.38,57.8287551]
[1748463178689,20.8487551,169.43,169.39,20.8487551]
[1748463179984,35.60324046,169.44,169.39,20.8487551]
[1748463180699,14.75448536,169.44,169.39,20.8487551]
[1748463180923,35.60324046,169.44,169.39,20.8487551]
[1748463181485,41.5050346,169.44,169.39,20.8487551]
[1748463182101,41.5050346,169.44,169.38,36.98]
[1748463182301,41.5050346,169.44,169.39,20.8487551]
[1748463183992,131.0050346,169.44,169.39,20.8487551]
[1748463184526,131.0050346,169.44,169.38,36.98]
[1748463184733,5.90249085,169.42,169.39,20.8487551]
[1748463188297,5.90214247,169.43,169.39,20.8487551]
[1748463188610,26.75089757,169.43,169.39,20.8487551]
[1748463189219,5.90214247,169.43,169.39,20.8487551]
[1748463189898,5.90214247,169.43,169.39,13.36470256]
[1748463190906,5.90214247,169.43,169.37,55.62964886]
[1748463191094,5.90214247,169.43,169.39,13.36470256]
[1748463191725,5.90214247,169.43,169.4,13.36470256]
[1748463194722,89.5,169.44,169.37,61.53387055]
[1748463194723,95.4019214,169.44,169.42,13.36470256]
[1748463195426,5.90074939,169.47,169.43,13.36470256]
[1748463195654,5.9000531,169.49,169.46,13.36470256]
[1748463195959,5.9000531,169.49,169.47,13.36470256]
[1748463196224,5.9000531,169.49,169.45,13.36470256]
[1748463197228,5.9000531,169.49,169.46,13.36470256]
[1748463197431,5.9000531,169.49,169.48,13.36470256]
[1748463198026,5.9000531,169.49,169.48,20.86140363]
[1748463198420,5.9000531,169.49,169.47,20.86140363]
[1748463198929,5.89935697,169.51,169.47,20.86140363]
[1748463201208,20.86140363,169.51,169.46,39.51105249]
[1748463202737,20.86140363,169.51,169.47,20.86140363]
[1748463203412,5.89970501,169.5,169.47,20.86140363]
[1748463204344,5.89970501,169.5,169.48,20.86140363]
[1748463206837,5.89935697,169.51,169.48,20.86140363]
[1748463208637,5.89900896,169.52,169.5,20.86140363]
[1748463210448,5.89900896,169.52,169.51,20.86140363]
[1748463211058,5.89831308,169.54,169.51,20.86140363]
[1748463211348,5.89831308,169.54,169.53,20.86140363]
[1748463211847,5.89831308,169.54,169.52,20.86140363]
[1748463212529,5.8979652,169.55,169.52,20.86140363]
[1748463219930,5.8979652,169.55,169.53,13.34368765]
[1748463220146,5.89761736,169.56,169.54,13.34368765]
[1748463220736,5.89761736,169.56,169.53,13.34368765]
[1748463222535,20.64166076,169.56,169.53,13.34368765]
[1748463224063,20.64166076,169.56,169.53,20.84928583]
[1748463225735,20.64166076,169.56,169.52,20.84928583]
[1748463227461,5.89761736,169.56,169.53,20.84928583]
[1748463227671,5.8969218,169.58,169.55,20.84928583]
[1748463227877,5.8969218,169.58,169.56,20.84928583]
[1748463229076,5.89657409,169.59,169.56,20.84928583]
[1748463230553,5.89657409,169.59,169.57,20.84928583]
[1748463230755,20.6368649,169.6,169.57,20.84928583]
[1748463231960,20.6368649,169.6,169.56,20.84928583]
[1748463232154,20.84928583,169.58,169.55,26.0]
[1748463232356,20.84928583,169.57,169.54,26.0]
[1748463232746,5.89761736,169.56,169.54,26.0]
[1748463237392,35.5922314,169.58,169.54,26.0]
[1748463238766,20.84928583,169.57,169.53,20.84928583]
[1748463239362,20.84928583,169.55,169.5,1.6171]
[1748463239569,20.84928583,169.54,169.5,20.84928583]
[1748463239787,20.84928583,169.54,169.5,46.84928583]
[1748463240094,20.84928583,169.55,169.51,20.84928583]
[1748463240776,20.84928583,169.54,169.5,46.84928583]
[1748463241104,20.84928583,169.53,169.5,26.0]
[1748463241305,20.84928583,169.52,169.48,20.84928583]
[1748463241597,5.89935697,169.51,169.48,46.84928583]
[1748463242569,5.89935697,169.51,169.49,20.84928583]
[1748463242982,5.89900896,169.52,169.49,20.84928583]
[1748463246096,14.74726098,169.53,169.49,20.84928583]
[1748463246296,35.59654681,169.53,169.49,20.84928583]
[1748463247974,41.49520781,169.53,169.48,46.84928583]
[1748463248701,20.64592198,169.53,169.48,46.84928583]
[1748463248989,41.49520781,169.53,169.48,46.84928583]
[1748463249203,20.84928583,169.51,169.46,8.1902]
[1748463249418,20.84928583,169.51,169.44,7.30287762]
[1748463249419,20.84928583,169.48,169.44,7.30287762]
[1748463249700,20.84928583,169.46,169.43,26.0]
[1748463250006,20.84928583,169.47,169.43,20.84928583]
[1748463250167,5.9010976,169.46,169.43,46.84928583]
[1748463250601,5.9010976,169.46,169.44,20.84928583]
[1748463251376,5.9010976,169.46,169.43,46.84928583]
[1748463252200,5.90074939,169.47,169.43,46.84928583]
[1748463252614,26.75003522,169.47,169.43,46.84928583]
[1748463252817,41.5019087,169.47,169.43,46.84928583]
[1748463253286,20.84928583,169.46,169.43,26.0]
[1748463253482,20.84928583,169.45,169.41,35.82]
[1748463253681,20.84928583,169.44,169.39,20.84928583]
[1748463253885,20.84928583,169.44,169.4,26.0]
[1748463254711,5.90214247,169.43,169.4,26.0]
[1748463255804,5.90214247,169.43,169.4,46.84928583]
[1748463255991,5.90214247,169.43,169.4,20.84928583]
[1748463256813,5.90214247,169.43,169.38,61.67934886]
[1748463256814,5.90214247,169.43,169.41,20.84928583]
[1748463257116,5.90214247,169.43,169.4,20.84928583]
[1748463257284,5.90214247,169.43,169.39,18.64964886]
[1748463257486,5.90214247,169.43,169.41,20.84928583]
[1748463258195,5.9010976,169.46,169.42,20.84928583]
[1748463258621,5.9010976,169.46,169.44,20.84928583]
[1748463258909,5.9010976,169.46,169.39,44.64964886]
[1748463258910,5.90046215,169.48,169.45,20.84928583]
[1748463259109,5.90046215,169.48,169.46,20.84928583]
[1748463259494,5.90046215,169.48,169.45,20.84928583]
[1748463261087,5.9000531,169.49,169.46,20.84928583]
[1748463267413,5.9000531,169.49,169.45,20.84928583]
[1748463270607,5.9000531,169.49,169.46,20.84928583]
[1748463271915,5.9000531,169.49,169.42,83.06914886]
[1748463272216,5.9000531,169.49,169.46,20.84928583]
[1748463277304,104.24882522,169.51,169.48,20.84928583]
[1748463277305,5.89982221,169.5,169.48,20.84928583]
[1748463277501,5.89982221,169.5,169.49,20.84928583]
[1748463278115,5.89982221,169.5,169.47,20.84928583]
[1748463278435,5.89982221,169.5,169.44,6.6119]
[1748463278436,20.64908474,169.5,169.46,20.84928583]
[1748463278599,41.49837057,169.5,169.46,20.84928583]
[1748463279329,41.49837057,169.5,169.45,20.84928583]
[1748463281517,20.64908474,169.5,169.45,20.84928583]
[1748463281725,41.49837057,169.5,169.46,20.84928583]
[1748463281922,20.64908474,169.5,169.47,13.35380797]
[1748463282829,5.89982221,169.5,169.47,13.35380797]
[1748463283006,5.89982221,169.5,169.44,72.06488074]
[1748463283211,5.89982221,169.5,169.49,13.35380797]
[1748463283423,5.89935697,169.51,169.49,13.35380797]
[1748463283803,5.89935697,169.51,169.48,13.35380797]
[1748463284003,5.89935697,169.51,169.48,20.86085275]
[1748463285332,5.89935697,169.51,169.49,20.86085275]
[1748463285907,5.89935697,169.51,169.5,20.86085275]
[1748463289415,20.64601143,169.53,169.5,20.86085275]
[1748463291624,41.50686418,169.53,169.48,20.86085275]
[1748463292607,41.50686418,169.53,169.49,20.86085275]
[1748463293419,131.00686418,169.53,169.49,20.86085275]
[1748463293808,110.14601143,169.53,169.49,20.86085275]
[1748463294908,95.398661,169.53,169.5,20.86085275]
[1748463295541,5.898661,169.53,169.52,20.86085275]
[1748463296947,5.89831308,169.54,169.52,20.86085275]
[1748463298225,5.89831308,169.54,169.48,20.20814886]
[1748463298226,89.5,169.55,169.53,20.86085275]
[1748463298816,95.39808545,169.55,169.53,20.86085275]
[1748463300446,95.39808545,169.55,169.52,20.86085275]
[1748463301326,95.39808545,169.55,169.49,26.0]
[1748463301327,20.86085275,169.53,169.49,20.86085275]
[1748463301530,20.86085275,169.52,169.48,20.86085275]
[1748463301731,110.14299845,169.55,169.47,18.64964886]
[1748463301732,20.86085275,169.51,169.47,20.86085275]
[1748463302130,20.86085275,169.53,169.49,20.86085275]
[1748463302334,5.89900896,169.52,169.49,20.86085275]
[1748463302856,5.898699,169.53,169.51,20.86085275]
[1748463303031,5.898699,169.53,169.49,18.64964886]
[1748463303032,95.39844266,169.54,169.52,20.86085275]
[1748463303344,5.89844266,169.54,169.53,20.86085275]
[1748463303559,5.89761736,169.56,169.53,20.86085275]
[1748463303718,5.89761736,169.56,169.54,20.86085275]
[1748463304350,20.64000157,169.58,169.55,20.86085275]
[1748463304550,5.8969218,169.58,169.56,20.86085275]
[1748463304764,5.8969218,169.58,169.55,20.86085275]
[1748463311862,20.63922631,169.58,169.55,20.86085275]
[1748463312164,20.63922631,169.58,169.52,36.8]
[1748463312165,20.86085275,169.56,169.52,20.86085275]
[1748463312762,20.86085275,169.54,169.5,20.86085275]
[1748463313061,89.5,169.57,169.46,1.5209]
[1748463313062,20.86085275,169.53,169.46,1.5209]
[1748463313238,20.86085275,169.53,169.49,20.86085275]
[1748463313436,5.89900896,169.52,169.49,20.86085275]
[1748463314253,5.89900896,169.52,169.5,20.86085275]
[1748463315839,5.898661,169.53,169.5,20.86085275]
[1748463316945,26.75951375,169.53,169.49,20.86085275]
[1748463318749,20.86085275,169.52,169.48,20.86085275]
[1748463318955,5.89970501,169.5,169.47,20.86085275]
[1748463320564,5.89970501,169.5,169.48,20.86085275]
[1748463320734,5.89970501,169.5,169.47,20.86085275]
[1748463323250,41.50982029,169.5,169.45,30.64085275]
[1748463323458,20.86085275,169.49,169.45,30.64085275]
[1748463324464,41.50982029,169.5,169.45,30.64085275]
[1748463325283,5.89970501,169.5,169.49,20.86085275]
[1748463326658,5.89900896,169.52,169.49,20.86085275]
[1748463331977,5.89900896,169.52,169.5,20.86085275]
[1748463333193,5.89761736,169.56,169.51,20.86085275]
[1748463333369,26.75847011,169.56,169.52,20.86085275]
[1748463333692,5.89761736,169.56,169.52,20.86085275]
[1748463334376,14.74329845,169.57,169.52,20.86085275]
[1748463334575,26.75777455,169.58,169.54,20.86085275]
[1748463336177,41.50007906,169.58,169.54,20.86085275]
[1748463337996,20.63922631,169.58,169.54,20.86085275]
[1748463340586,20.63922631,169.58,169.55,20.86085275]
[1748463342793,5.8969218,169.58,169.57,20.86085275]
[1748463343798,95.3967076,169.59,169.57,20.86085275]
[1748463343973,95.3967076,169.59,169.58,20.86085275]
[1748463344413,5.8967076,169.59,169.58,20.86085275]
[1748463345314,5.89553118,169.62,169.58,20.86085275]
[1748463346404,41.49521189,169.62,169.58,20.86085275]
[1748463348307,41.49521189,169.62,169.55,55.38964886]
[1748463348487,20.86085275,169.61,169.56,20.86085275]
[1748463349586,5.89622641,169.6,169.57,20.86085275]
[1748463350573,5.89622641,169.6,169.58,20.86085275]
[1748463351801,5.89622641,169.6,169.59,20.86085275]
[1748463352201,5.89553118,169.62,169.6,18.64964886]
[1748463352499,5.89553118,169.62,169.61,20.86085275]
[1748463353511,14.73428678,169.68,169.61,20.86085275]
[1748463353687,5.89379383,169.67,169.63,18.64964886]
[1748463353883,5.89379383,169.67,169.66,20.86085275]
[1748463354079,5.89379383,169.67,169.65,20.86085275]
[1748463354384,20.62827841,169.67,169.64,20.86085275]
[1748463355800,20.62827841,169.67,169.62,26.0]
[1748463356006,41.48913116,169.67,169.62,20.86085275]
[1748463356302,41.48913116,169.67,169.63,20.86085275]
[1748463358789,20.62827841,169.67,169.63,20.86085275]
[1748463360086,14.73448458,169.67,169.63,20.86085275]
[1748463360286,14.73448458,169.67,169.65,20.86085275]
[1748463360495,5.89344648,169.68,169.66,20.86085275]
[1748463360907,5.89344648,169.68,169.65,20.86085275]
[1748463361811,20.62519501,169.7,169.66,20.86085275]
[1748463362010,41.48604776,169.7,169.66,20.86085275]
[1748463362184,20.86085275,169.69,169.65,20.86085275]
[1748463363110,20.86085275,169.69,169.62,44.64964886]
[1748463363313,20.86085275,169.69,169.61,18.64964886]
[1748463363492,20.86085275,169.69,169.65,20.86085275]
[1748463364088,5.89344648,169.68,169.65,20.86085275]
[1748463366322,20.62706269,169.68,169.65,20.86085275]
[1748463366531,41.48791544,169.68,169.64,20.86085275]
[1748463369202,20.86085275,169.66,169.61,55.34964886]
[1748463369402,20.86085275,169.67,169.62,20.86085275]
[1748463370606,5.89414122,169.66,169.62,20.86085275]
[1748463372832,5.89414122,169.66,169.61,18.64964886]
[1748463373034,20.62949427,169.66,169.62,20.86085275]
[1748463373238,41.49034702,169.66,169.62,20.86085275]
[1748463373422,20.62949427,169.66,169.62,20.86085275]
[1748463373622,20.62949427,169.66,169.63,20.86085275]
[1748463373934,20.62949427,169.66,169.64,20.86085275]
[1748463374738,20.62949427,169.66,169.63,20.86085275]
[1748463375249,14.73535305,169.66,169.63,16.44452257]
[1748463375409,14.73535305,169.66,169.63,10.55608233]
[1748463375929,14.73535305,169.66,169.61,18.64964886]
[1748463375930,5.89379383,169.67,169.64,20.86085275]
[1748463376121,5.89379383,169.67,169.65,20.86085275]
[1748463376320,5.89379383,169.67,169.63,20.86085275]
[1748463378237,5.89379383,169.67,169.64,4.38178553]
[1748463378416,5.89379383,169.67,169.65,4.38223801]
[1748463378607,5.89379383,169.67,169.66,4.38236645]
[1748463379313,5.89379383,169.67,169.65,20.86085275]
[1748463379536,5.89379383,169.67,169.66,4.382523]
[1748463379717,5.89379383,169.67,169.66,25.24337575]
[1748463380131,5.89379383,169.67,169.66,20.86085275]
[1748463380318,5.89379383,169.67,169.66,25.24219039]
[1748463380642,14.73333198,169.69,169.66,25.24235005]
[1748463380840,14.73333198,169.69,169.67,4.3814973]
[1748463381023,14.73333198,169.69,169.68,4.38184734]
[1748463381347,14.73333198,169.69,169.68,4.38324901]
[1748463382148,14.73333198,169.69,169.68,4.38328435]
[1748463382742,35.59418473,169.69,169.68,4.38328435]
[1748463382927,35.59418473,169.69,169.68,4.38371366]
[1748463383444,35.7363463,169.69,169.68,4.38371366]
[1748463383682,35.7363463,169.69,169.68,4.38457348]
[1748463384016,35.7363463,169.69,169.68,4.38455612]
[1748463384216,35.7363463,169.69,169.68,4.38457842]
[1748463384559,35.7363463,169.69,169.68,4.38484598]
[1748463384727,41.62944548,169.69,169.68,4.38484598]
[1748463384927,41.62944548,169.69,169.63,20.86085275]
[1748463385128,20.86085275,169.67,169.64,4.38484824]
[1748463385435,110.36085275,169.68,169.65,4.38484824]
[1748463385626,110.36085275,169.68,169.66,4.38484824]
[1748463385832,110.36085275,169.68,169.67,4.38484824]
[1748463386222,110.36085275,169.68,169.64,20.86085275]
[1748463386648,5.89379383,169.67,169.64,20.86085275]
[1748463386848,20.62827841,169.67,169.64,20.86085275]
[1748463389034,20.62827841,169.67,169.63,20.86085275]
[1748463390940,110.12827841,169.67,169.63,20.86085275]
[1748463391134,130.98913116,169.67,169.63,20.86085275]
[1748463392351,95.39379383,169.67,169.65,20.86085275]
[1748463393350,95.39379383,169.67,169.64,20.86085275]
[1748463396170,95.39379383,169.67,169.66,20.86085275]
[1748463396458,5.89275191,169.7,169.66,20.86085275]
[1748463396636,5.89275191,169.7,169.68,20.86085275]
[1748463396830,5.89275191,169.7,169.67,20.86085275]
[1748463398640,20.62463169,169.7,169.67,20.86085275]
[1748463409266,5.89275191,169.7,169.69,20.86085275]
[1748463409472,95.39248668,169.71,169.69,39.51050161]
[1748463409799,5.89248668,169.71,169.7,20.86085275]
[1748463411873,14.72977694,169.73,169.7,20.86085275]
[1748463413393,5.89136326,169.74,169.71,20.86085275]
[1748463413962,20.61977141,169.74,169.7,18.64964886]
[1748463414161,20.61977141,169.74,169.71,20.86085275]
[1748463414388,20.61977141,169.74,169.7,20.86085275]
[1748463415165,20.61977141,169.74,169.71,20.86085275]
[1748463417283,5.89136326,169.74,169.72,20.86085275]
[1748463417590,5.89136326,169.74,169.69,18.64964886]
[1748463417591,5.89136326,169.74,169.73,20.86085275]
[1748463417882,5.8910162,169.75,169.73,20.86085275]
[1748463425886,5.8910162,169.75,169.74,20.86085275]
[1748463426081,20.61661073,169.77,169.74,20.86085275]
[1748463427380,5.8903222,169.77,169.75,20.86085275]
[1748463427577,5.8903222,169.77,169.76,20.86085275]
[1748463428092,5.88997526,169.78,169.76,20.86085275]
[1748463428795,5.88997526,169.78,169.77,20.86085275]
[1748463429396,89.5,169.79,169.77,20.86085275]
[1748463429397,5.88972501,169.79,169.77,20.86085275]
[1748463429573,5.88972501,169.79,169.78,20.86085275]
[1748463430295,5.88858791,169.82,169.78,20.86085275]
[1748463430703,5.88858791,169.82,169.79,20.86085275]
[1748463430900,5.88858791,169.82,169.75,36.6]
[1748463430901,41.47091045,169.82,169.78,20.86085275]
[1748463431195,20.86085275,169.8,169.76,20.86085275]
[1748463431396,20.86085275,169.8,169.75,57.46085275]
[1748463432277,20.61369927,169.79,169.75,57.46085275]
[1748463432473,41.47455202,169.79,169.75,57.46085275]
[1748463433531,20.86085275,169.78,169.73,20.86085275]
[1748463434394,20.86085275,169.78,169.74,20.86085275]
[1748463434591,20.61369927,169.79,169.74,20.86085275]
[1748463434790,20.86085275,169.78,169.74,20.86085275]
[1748463435190,20.61369927,169.79,169.74,20.86085275]
[1748463435391,41.47455202,169.79,169.74,20.86085275]
[1748463437880,14.72407091,169.79,169.75,20.86085275]
[1748463438091,35.58492366,169.79,169.75,20.86085275]
[1748463439011,41.47455202,169.79,169.75,20.86085275]
[1748463440092,20.86085275,169.78,169.73,20.86085275]
[1748463441187,5.8903222,169.77,169.73,20.86085275]
[1748463441907,20.6161277,169.77,169.73,20.86085275]
[1748463442805,41.47698045,169.77,169.73,20.86085275]
[1748463443490,20.6161277,169.77,169.74,20.86085275]
[1748463443897,41.47698045,169.77,169.72,36.6]
[1748463444099,41.47698045,169.77,169.73,20.86085275]
[1748463446505,41.47698045,169.77,169.72,20.86085275]
[1748463447905,20.86085275,169.76,169.72,20.86085275]
[1748463449114,20.86085275,169.76,169.71,22.47815275]
[1748463449410,20.86085275,169.76,169.6,20.86085275]
[1748463449411,5.89240469,169.71,169.67,1.6491]
[1748463449615,20.86085275,169.7,169.66,20.86085275]
[1748463449791,20.86085275,169.7,169.66,46.86085275]
[1748463450411,20.86085275,169.7,169.66,20.86085275]
[1748463451237,5.89240469,169.71,169.68,20.86085275]
[1748463451508,5.8920575,169.72,169.69,20.86085275]
[1748463451708,26.75291025,169.72,169.68,20.86085275]
[1748463452411,20.86085275,169.71,169.67,20.86085275]
[1748463453613,5.89275191,169.7,169.67,20.86085275]
[1748463455221,5.89275191,169.7,169.68,20.86085275]
[1748463455713,5.89240469,169.71,169.68,20.86085275]
[1748463457815,5.89240469,169.71,169.67,20.86085275]
[1748463460526,26.75325744,169.71,169.65,46.24]
[1748463460710,26.75325744,169.71,169.66,20.86085275]
[1748463461917,41.48426916,169.71,169.66,20.86085275]
[1748463466006,41.48426916,169.71,169.67,20.86085275]